Cogmind - Beta 13 @@@ ROGUE MODE // 2024.04.14 @ 16:24:18 Player: xSquared Result: Destroyed by S-10 Pest with Light Assault Rifle Performance ------------- Evolutions (0) 0 Regions Visited (3) 600 Robots Destroyed (27) 135 Value Destroyed (670) 670 Prototype IDs (0) 0 Alien Tech Used (0) 0 Bonus (-221) -221 TOTAL SCORE: 1184 Bonus ------- Friendly Fire -221 Cogmind --------- Core Integrity 0/250 Matter 252/300 Energy 200/200 System Corruption 0% Temperature Cool (0) Movement Walking (190) Ox1 Location -10/Subcaves Parts ------- > --- POWER (1) -------- Subdweller Power Source > --- PROPULSION (2) --- Aluminum Leg Aluminum Leg > --- UTILITY (2) ------ Subdweller Optics Subdweller Optics > --- WEAPON (2) ------- Battle Cannon Bore Cannon > --- INVENTORY (5) ---- Ion Engine Ion Engine Subdweller Laser Scrap Shield Fragment (47) Peak State ------------ > --- POWER ------------ Light Angular Momentum Engine > --- PROPULSION ------- Aluminum Leg Aluminum Leg > --- UTILITY ---------- Subdweller Optics Subdweller Optics > --- WEAPON ----------- Battle Cannon Bore Cannon > --- INVENTORY -------- Ion Engine Ion Engine Aluminum Leg Subdweller Laser Scrap Shield Fragment [Rating: 18] Favorites ----------- Power Ion Engine Engine Ion Engine Power Core Light Nuclear Core Propulsion Aluminum Leg Treads Light Treads Leg Aluminum Leg Utility Machine Analyzer Device Subdweller Optics Storage Small Storage Unit Processor Machine Analyzer Protection Scrap Shield Weapon Assault Rifle Energy Gun EM Pulse Gun Ballistic Gun Assault Rifle Ballistic Cannon Bore Cannon Launcher Grenade Launcher Build | -11 -10 -10 -10 ------- Run | Yrd Mat Min Sub Slots Evolved . | . . . . Power . | . . . . Propulsion . | . . . . Utility . | . . . . Weapon . | . . . . Parts Attached 30 | 5 9 5 11 Power 6 | 1 2 1 2 Engine 5 | 1 1 1 2 Core 1 | . 1 . . Reactor . | . . . . Propulsion 6 | 2 2 1 1 Treads 2 | 2 . . . Leg 4 | . 2 1 1 Wheel . | . . . . Hover . | . . . . Flight . | . . . . Utility 8 | . 3 1 4 Device 5 | . 1 1 3 Storage 1 | . 1 . . Processor 1 | . 1 . . Hackware . | . . . . Protection 1 | . . . 1 Artifact . | . . . . Weapon 10 | 2 2 2 4 Energy Gun 2 | . 1 . 1 Energy Cannon . | . . . . Ballistic Gun 3 | 2 1 . . Ballistic Cannon 3 | . . 1 2 Launcher 2 | . . 1 1 Special Weapon . | . . . . Impact Weapon . | . . . . Slashing Weapon . | . . . . Piercing Weapon . | . . . . Special Melee Weapon . | . . . . Unidentified Prototypes . | . . . . Parts Lost 7 | . 2 1 4 Power . | . . . . Propulsion 2 | . 1 . 1 Utility 1 | . . . 1 Weapon 4 | . 1 1 2 Highest Loss Streak 1 | . 1 1 1 To Critical Strikes . | . . . . Average Slot Usage (%) 96 | . 98 99 91 Engine 10 | . 13 3 13 Core 3 | . . 10 . Treads 8 | . 20 . . Leg 19 | . 6 28 27 Device 7 | . 5 3 15 Storage 6 | . 8 10 . Processor 9 | . 13 14 . Protection 1 | . . . 5 Energy Gun 5 | . . 14 3 Ballistic Gun 12 | . 26 4 . Ballistic Cannon 8 | . . 8 21 Naked Turns . | . . . . Heaviest Build 36 | 8 14 21 36 Greatest Support 40 | 40 40 20 20 Greatest Overweight (x) 2 | . . 1 2 Average Overweight (x) . | . . . . Largest Inventory Capacity 8 | 5 8 8 5 Average Capacity 6 | 5 6 7 5 Most Carried 8 | 2 6 8 5 Average Carried 5 | 1 4 6 4 Final Capacity 8 | 5 8 5 5 Final Carried 6 | 2 6 5 4 Class Distribution -------------------- 51% | Mutant 48% | Scavenger-Mutant Dominant Class ---------------- Mutant | -10/Materials Scavenger-Mutant | -10/Mines Scavenger-Mutant | -10/Subcaves Resources | -11 -10 -10 -10 ----------- Run | Yrd Mat Min Sub Matter Collected 898 | 250 303 104 241 Remotely . | . . . . Salvage Created 821 | . 484 140 197 Parts 60 | . 40 9 11 Haulers Intercepted . | . . . . Recyclers Shooed . | . . . . Parts Field Recycled . | . . . . Retrieved Matter . | . . . . Parts Self-Destructed 2 | . . . 2 Prevented . | . . . . Kills | -11 -10 -10 -10 ------- Run | Yrd Mat Min Sub Combat Hostiles Destroyed 21 | . 13 3 5 Guns 14 | . 13 1 . Cannons 5 | . . 2 3 AOE 2 | . . . 2 Classes Destroyed 7 | . 6 . 1 Worker 1 | . 1 . . Builder 2 | . 1 1 . Mechanic 1 | . 1 . . Operator 1 | . 1 . . Swarmer 6 | . 5 . 1 Grunt 11 | . 8 3 . Subdweller 4 | . . . 4 Thug 1 | . . . 1 Best Kill Streak 5 | . 5 2 2 Combat Bots Only 4 | . 4 2 2 Max Kills in Single Turn 3 | . 2 1 3 Gunslinging 1 | . 1 . . Exploded 2 | . . . 2 Melee . | . . . . Uniques/NPCs Destroyed . | . . . . Combat | -11 -10 -10 -10 -------- Run | Yrd Mat Min Sub Hostile Shots Fired 165 | . 84 23 58 Missed 47 | . 22 6 19 Damage Taken 1551 | . 643 290 618 Core 254 | . 83 82 89 Absorbed by Shields . | . . . . Core Remaining (%) 100 | 100 . . . Volleys Fired 92 | . 60 17 15 Largest 2 | . 2 2 2 Hottest 117 | . 60 97 117 Shots Fired 179 | . 119 33 27 Gun 145 | . 119 22 4 Cannon 32 | . . 10 22 Launcher 2 | . . 1 1 Special . | . . . . Kinetic 152 | . 115 15 22 Thermal 3 | . . . 3 Explosive 2 | . . 1 1 Electromagnetic 22 | . 4 17 1 Robot Hit Streak 13 | . 13 5 6 Robot Miss Streak 5 | . 3 5 5 Penetration Max 1 | . . 1 1 Secondary Targets 3 | . 3 . . Max Gunslinging Chain 1 | . 1 . . Shots Hit Robots 105 | . 76 17 12 Core Hits 52 | . 34 6 12 Critical Kills 6 | . 1 2 3 Critical Parts Destroyed 5 | . . 3 2 Critical Strikes 13 | . 1 6 6 Destroy 12 | . 1 5 6 Corrupt 1 | . . 1 . Melee Attacks . | . . . . Impact . | . . . . Slashing . | . . . . Piercing . | . . . . Sneak Attacks . | . . . . Combat Hostiles . | . . . . Follow-up Attacks . | . . . . Damage Inflicted 1881 | . 834 442 605 Guns 1038 | . 826 174 38 Cannons 452 | . . 134 318 Explosions 383 | . . 134 249 Melee . | . . . . Ramming 8 | . 8 . . Kinetic 1297 | . 799 180 318 Thermal 135 | . . 97 38 Explosive 286 | . . 37 249 Electromagnetic 155 | . 27 128 . Impact . | . . . . Slashing . | . . . . Piercing . | . . . . Highest Corruption . | . . . . Average Corruption . | . . . . Corruption Purged . | . . . . Corruption Blocked . | . . . . Overload Shots . | . . . . Overflow Damage 16 | . . 16 . Projectiles 5 | . . 5 . Explosions 11 | . . 11 . Melee . | . . . . Knockbacks 7 | . . 2 5 Impact . | . . . . Kinetic 7 | . . 2 5 Secondary . | . . . . Self-Inflicted Damage 116 | . . 91 25 Shots 3 | . . 2 1 Rammed 2 | . 2 . . Targets Rammed 3 | . 3 . . Kicked 1 | . 1 . . Crushed . | . . . . Highest Temperature 292 | . 54 292 18 Average Temperature 60 | . 14 88 10 Received Heat Transfer 513 | . 273 114 126 Effects 1 | . . 1 . Energy Bleed 1 | . . 1 . Siege Activations . | . . . . Robots Corrupted . | . . . . Combat Hostiles . | . . . . Parts Fried . | . . . . Impact Corruptions . | . . . . Robots Melted . | . . . . Combat Hostiles . | . . . . Parts Melted . | . . . . Heat Transferred 150 | . . 100 50 Parts Sabotaged . | . . . . Parts Stolen . | . . . . Parts Stripped . | . . . . Power Chain Reactions 1 | . . 1 . Alert | -11 -10 -10 -10 ------- Run | Yrd Mat Min Sub Peak Influence 185 | . 185 106 . Initial 23 | . . 23 . Average 61 | . 74 50 . Maximum Alert Level . | . . . . Low Security (%) 100 | 100 100 100 . Level 1 . | . . . . Level 2 . | . . . . Level 3 . | . . . . Level 4 . | . . . . Level 5 . | . . . . High Security . | . . . . Max Security . | . . . . Squads Dispatched 2 | . 2 . . Investigation 2 | . 2 . . Extermination . | . . . . Reinforcement . | . . . . Assault . | . . . . Garrison . | . . . . Intercept . | . . . . Searches Triggered . | . . . . Construction Impeded . | . . . . Haulers Reinforced . | . . . . Active Scanning Responses . | . . . . Cargo Convoy Interrupts . | . . . . Stealth | -11 -10 -10 -10 --------- Run | Yrd Mat Min Sub Distress Signals 1 | . 1 . . Communications Jammed . | . . . . Distress Signals . | . . . . Times Spotted 68 | . 27 10 31 Peak Tracking Total 6 | . 6 2 6 Tactical Retreats 7 | . . 6 1 Traps | -11 -10 -10 -10 ------- Run | Yrd Mat Min Sub Traps Triggered 3 | . 2 . 1 Indirectly . | . . . . Trap Hack Attempts . | . . . . Triggered . | . . . . Disarmed . | . . . . Reprogrammed . | . . . . Reused . | . . . . Traps Extracted . | . . . . Installed . | . . . . Triggered . | . . . . Machines | -11 -10 -10 -10 ---------- Run | Yrd Mat Min Sub Machines Disabled 3 | . 1 . 2 Max in Single Turn 1 | . 1 . 1 Machines Repaired . | . . . . Machines Dismantled . | . . . . Machines Sabotaged . | . . . . Overloaded Fab Kills . | . . . . Hacking | -11 -10 -10 -10 --------- Run | Yrd Mat Min Sub Machines Accessed 3 | . 3 . . Terminals 2 | . 2 . . Fabricators . | . . . . Repair Stations . | . . . . Recycling Units 1 | . 1 . . Scanalyzers . | . . . . Garrison Access . | . . . . Total Hacks 7 | . 7 . . Successful 4 | . 4 . . Failed 3 | . 3 . . Catastrophic 1 | . 1 . . Database Lockouts . | . . . . Manual 4 | . 4 . . Terminals 6 | . 6 . . Fabricators . | . . . . Repair Stations . | . . . . Recycling Units 1 | . 1 . . Scanalyzers . | . . . . Garrison Access . | . . . . Terminal Hacks 3 | . 3 . . Branch Access Points 1 | . 1 . . Patrol Status 1 | . 1 . . Zone Layout 1 | . 1 . . Fabricator Hacks . | . . . . Repair Station Hacks . | . . . . Recycling Unit Hacks 1 | . 1 . . Report Inventory 1 | . 1 . . Scanalyzer . | . . . . Garrison Access Hacks . | . . . . Unauthorized Hacks . | . . . . Terminals . | . . . . Fabricators . | . . . . Repair Stations . | . . . . Recycling Units . | . . . . Scanalyzers . | . . . . Garrison Access . | . . . . Data Cores Recovered . | . . . . Used . | . . . . Hacking Detections 3 | . 3 . . Full Trace Events 2 | . 2 . . Feedback Events . | . . . . Feedback Blocked . | . . . . Robot Schematics Acquired . | . . . . Robots Built . | . . . . Authchips . | . . . . Time . | . . . . Total Robot Build Rating . | . . . . Part Schematics Acquired . | . . . . Parts Built . | . . . . Authchips . | . . . . Time . | . . . . Total Part Build Rating . | . . . . Parts Repaired . | . . . . Time . | . . . . Parts Recycled . | . . . . Recycled Matter . | . . . . Retrieved Matter . | . . . . Retrieved Components . | . . . . Parts Scanalyzed . | . . . . Part Schematics Acquired . | . . . . Parts Damaged . | . . . . Bothacking | -11 -10 -10 -10 ------------ Run | Yrd Mat Min Sub Used RIF Installer . | . . . . Robots Hacked . | . . . . Non-combat . | . . . . Combat . | . . . . Robot Hacks Applied . | . . . . Relay Couplers Released . | . . . . Fabnet Peak Effective % . | . . . . Robots Rewired . | . . . . Allies Hacked . | . . . . Hacks Repelled . | . . . . Allies | -11 -10 -10 -10 -------- Run | Yrd Mat Min Sub Total Allies . | . . . . Largest Group . | . . . . Highest-Rated Group . | . . . . Highest-Rated Ally . | . . . . Total Orders . | . . . . Ally Attacks . | . . . . Total Damage . | . . . . Kills . | . . . . Allies Corrupted . | . . . . Allies Melted . | . . . . Intel | -11 -10 -10 -10 ------- Run | Yrd Mat Min Sub Robot Analysis Total . | . . . . Derelict Logs Recovered 2 | . . 1 1 Drone Launches . | . . . . Drone Recoveries . | . . . . Exploration | -11 -10 -10 -10 ------------- Run | Yrd Mat Min Sub Turns Passed 3020 | 113 1228 860 819 Spaces Moved 1754 | 71 699 573 411 Core 9 | 9 . . . Treads 553 | 62 491 . . Legs 1192 | . 208 573 411 Wheels . | . . . . Hover . | . . . . Flight . | . . . . Fastest Speed 50 | 50 120 120 120 Average Speed 153 | 146 148 139 181 Slowest Speed 260 | 160 160 190 260 Overloaded Moves . | . . . . Propulsion Burnouts . | . . . . Robots Hopped . | . . . . Cave-ins Triggered . | . . . . Exploration Rate (%) 35 | 4 68 51 19 Regions Visited 3 Branch Regions 2 Pre-discovered Areas 2 | . . 1 1 Known Exits Taken 1 | . 1 . . Unknown Exits Taken 2 | 1 . 1 . Scrap Searched 1 | . . . 1 Spaces Dug . | . . . . Terrain Destroyed 24 | . . 13 11 Melee . | . . . . Projectile 11 | . . 4 7 AOE 13 | . . 9 4 Terrain Rammed . | . . . . Walls Destroyed . | . . . . Machines Disabled . | . . . . Actions | -11 -10 -10 -10 --------- Run | Yrd Mat Min Sub Total 1914 | 78 781 604 451 Wait . | . . . . Move 1751 | 70 698 572 411 Hop . | . . . . Pick Up 18 | 3 7 5 3 Fast Attach 16 | 4 5 . 7 Attach 7 | 1 2 2 2 Detach 1 | . . . 1 Swap 7 | . 2 3 2 Drop 16 | . 4 5 7 Fire 92 | . 60 17 15 Melee . | . . . . Ram . | . . . . Kick 1 | . 1 . . Crush 2 | . 2 . . Escape Stasis . | . . . . Rewire 3 | . . . 3 Trap . | . . . . Miscellaneous . | . . . . Route ------- -11/Scrapyard -10/Materials (discovered 2 exits: [*Mat] / *Min) -10/Mines (discovered 3 exits: [*Mat x2] / [*Sub]) -10/Subcaves (discovered 1 exit: [*Rec]) History --------- Turn | Location | Event 14 | -11/Scrapyard | Discovered new exit (range 14) 114 | -11/Scrapyard | Entered Materials 305 | -10/Materials | Build established: Mutant 484 | -10/Materials | Discovered new exit (range 7) 1126 | -10/Materials | Discovered new exit (range 3) 1312 | -10/Materials | Identified exit to Mines 1342 | -10/Materials | Entered Mines 1353 | -10/Mines | Met a Derelict bent on vengeance 1368 | -10/Mines | Learned Materials non-interactive machine intel 1388 | -10/Mines | A weapon hastily lodged in a ceiling crevice suddenly fell to the ground 1400 | -10/Mines | Discovered new exit (range 5) 1402 | -10/Mines | Learned location of Storage (-8) 1564 | -10/Mines | Build established: Scavenger-Mutant 1564 | -10/Mines | Discovered new exit (range 7) 1653 | -10/Mines | Core integrity fell below 50% 2180 | -10/Mines | Discovered new exit (range 9) 2202 | -10/Mines | Entered Subcaves 2207 | -10/Subcaves | Learned location of Zion (-7) 2426 | -10/Subcaves | Shifting Twisted Machinery released Battle Cannon 2430 | -10/Subcaves | Ambushed by swarm of Subdwellers 2430 | -10/Subcaves | Ambushed by Subdwellers from Twisted Machinery 2682 | -10/Subcaves | Core integrity fell below 20% 3005 | -10/Subcaves | Discovered new exit (range 10) 3021 | -10/Subcaves | Destroyed by S-10 Pest with Light Assault Rifle Last Messages --------------- 68-ACN(g) suffers critical hit (Impale). 68-ACN(g) destroyed. Acquired 20 matter. Triggered Piercing Trap. Spikes shoot up from the floor. Critical hit (Impale). Aluminum Leg destroyed. Acquired 10 matter. Sub. Optics shoots sparks and powers down. AH-RSE(u) deconstructs Twisted Machinery. EXIT=FOUND S-10 Pest springs to life. HV Slug penetrates Autobeam Turret. Autobeam Turret suffers critical hit (Destroy). Destroyed Autobeam. S-10 Pest destroyed. Machine disabled. S-10 Pest destroyed. M8-PJY(g) destroyed. Lgt. Ion Engine fries itself beyond repair. Map ----- +----------------------------------------------------+ | ?????????????????????????????????????????????????? | | ?????????????????????????????????????????????????? | | ?????????????????????????????????####??????####??? | | ????????????????????????????????## ###??##""#### | | ???????????????????????????????## "" ####""""""# | | ??????????????????????????????## " "" "#?# | | ??????????????????????????????# """" #?## | | ???????????????????????????? " ## """ " ### # | | ???????????????????????????# ??# "## ## "" | | ????????????????????????????? ?? #?# """" | | ????????????????????????#????? ??## ""#### | | ???????????????????????# ???? #???## "" ##? | | ???????????????????????" ??? ?????## ""## | | ???????????????????????""?? ## ??????# """ | | ???????????????????????""?# ??## ??#???## """ | | ???????????????????????? ?#????#""??# "## """" | | ???????????????????????? ##????#"???# "" | | ????????????????????????""#?????????##"" | | ???????????????????????? ##?######?# ""## ### | | ???????????????????????? #? ""#?# #?#### | | ???????????????????????? # s #?#" "## ## | | ????????????????????????# # "#?# """ ## | | ????????????????????????# s t""###" ## # | | ????????????????????#####%%= % %<######?#### # | | ????????????????????####!* %[ "#??????????# # | | ????????????????????## @## "#????????### | | ?????????????????????## #????? "#????????# | | ?????????????????????## #??????"####?????## ### | | ?????????????????????### ############??????##??## | | ?????????????????????## ######## ##???####????# | | ?????????????????????### # ### ##??## ######? | | ?????????????????????### # ##### ## ## | | ?????????????????????## #### % | | ?????????????????????###### ## ## | | ?????????????????????###### ### # " | | ?????????????????????????## ### ## "& | | ????????????????????????### ### & | | ????????????????????????### ## #### | | ??????????????????????#### & # ## #### """ | | ??????????????????????## ! ## "" | | ??????????????????????### | | ??????????????????????### #### ## # | | ??????????????????????### ### ######## | | ??????????????????????## ###?############# ## | | ??????????????????????######?######?????###### | | ??????????????????????####???????????????????#### | | ????????????????????????????????????????????????## | | ?????????????????????????????????????????????????? | | ?????????????????????????????????????????????????? | | ?????????????????????????????????????????????????? | +----------------------------------------------------+ Best States ------------- Heat Dissipation 25 Energy Generation 18 Energy Capacity 250 Matter Stores 300 Matter Capacity 300 Sight Range 21 Terrain Scan Density 10 Armor Coverage 800 Evasion (%) 55 Recoil Reduction 2 Item Schematics ----------------- None Robot Schematics ------------------ None Fabricated ------------ Nothing Alien Tech Used ----------------- None Achievements -------------- None Challenges ------------ None Game ------ Seed ChargeBackupKinecellerator Manual? 0 Play Time 00:26:03 Cumulative 4.9 hours Start 2024.04.14 @ 15:41:30 End 2024.04.14 @ 16:24:18 Sessions 3 Manual Loads 0 Difficulty Rogue Special Mode None Game No. 12 Rogue 12 Adventurer 0 Explorer 0 Win Type - Total 0 Types 0/0/0/0/0/0/0/0/0 Lore% 1 Gallery% 11 Achievement% 8 Wizard Run 0 Options --------- Layout 1 ASCII 0 Keyboard 0 Movement Arrows Keybinds 0 Fullscreen 1 Font 24/Terminus Map View 50x35 Zoom Use 0% Tactical HUD 0 Map Filters NONE Filters NONE Steam 1 RUN: 8ef34f66-704b-4315-a0e6-bd76f0ca8193